Cogmind - Beta 17 @@@ ROGUE MODE // 2026.06.27 @ 19:31:44 Player: mintimati Result: Destroyed by H-61 Shepherd with Heavy Assault Cannon Performance ------------- Evolutions (2) 1000 Regions Visited (5) 1000 Robots Destroyed (34) 170 Value Destroyed (970) 970 Prototype IDs (24) 480 Alien Tech Used (0) 0 Bonus (315) 315 TOTAL SCORE: 3935 Bonus ------- High Alert Combat Kills 15 Aligned with FarCom 300 Cogmind --------- Core Integrity 0/550 Matter 212/300 Energy 98/100 System Corruption 14% Temperature Cool (0) Movement Core (50) Location -8/Materials Parts ------- > --- POWER (1) -------- (None) > --- PROPULSION (4) --- (None) > --- UTILITY (4) ------ (None) > --- WEAPON (2) ------- (None) > --- INVENTORY (5) ---- Light Nuclear Core Carbon-fiber Leg Improved VTOL Module Field Laser Beam Cannon Peak State ------------ > --- POWER ------------ Ion Engine > --- PROPULSION ------- Armored Huge Wheel Armored Huge Wheel > --- UTILITY ---------- Small Storage Unit Structural Scanner Modified TNC > --- WEAPON ----------- Latent Energy Streamer Beam Cannon > --- INVENTORY -------- Armored Huge Wheel Improved VTOL Module Ion Cannon [Rating: 37] Favorites ----------- Power Ion Engine Engine Ion Engine Propulsion Armored Huge Wheel Wheel Armored Huge Wheel Hover Unit Hover Unit Flight Unit Flight Unit Utility Small Storage Unit Device Structural Scanner Storage Small Storage Unit Processor Modified TNC Protection Hardened Medium Armor Plating Weapon Heavy Laser Energy Gun Heavy Laser Energy Cannon Beam Cannon Ballistic Gun Light Assault Rifle Launcher Missile Launcher Build | -11 -10 -10 -10 -9 -8 ------- Run | Yrd Mat Min Exi Min Mat Slots Evolved 4 | . . . . . 4 Power . | . . . . . . Propulsion 2 | . . . . . 2 Utility 2 | . . . . . 2 Weapon . | . . . . . . Parts Attached 27 | 7 4 2 5 . 9 Power 3 | 1 . . 1 . 1 Engine 3 | 1 . . 1 . 1 Core . | . . . . . . Reactor . | . . . . . . Propulsion 9 | 2 2 2 . . 3 Treads . | . . . . . . Leg . | . . . . . . Wheel 4 | 2 . . . . 2 Hover 2 | . 2 . . . . Flight 3 | . . 2 . . 1 Utility 6 | 2 1 . 1 . 2 Device 2 | 1 1 . . . . Storage 1 | 1 . . . . . Processor 2 | . . . 1 . 1 Hackware . | . . . . . . Protection 1 | . . . . . 1 Artifact . | . . . . . . Weapon 9 | 2 1 . 3 . 3 Energy Gun 3 | 1 . . . . 2 Energy Cannon 3 | . . . 3 . . Ballistic Gun 2 | 1 1 . . . . Ballistic Cannon . | . . . . . . Launcher 1 | . . . . . 1 Special Weapon . | . . . . . . Impact Weapon . | . . . . . . Slashing Weapon . | . . . . . . Piercing Weapon . | . . . . . . Special Melee Weapon . | . . . . . . Unidentified Prototypes 4 | . . . 3 . 1 Parts Lost 13 | . . 3 . . 10 Power 2 | . . 1 . . 1 Propulsion 5 | . . 2 . . 3 Utility 5 | . . . . . 5 Weapon 1 | . . . . . 1 Highest Loss Streak 4 | . . 3 . . 4 To Critical Strikes . | . . . . . . Average Backups 5 | 1 5 7 4 6 5 Power . | . 1 1 . . . Propulsion . | . 2 2 . . 1 Utility . | . . 1 1 2 . Weapon 3 | . 1 3 2 3 3 Tool/Special . | . . . . . . Unused Backups 10 | . 1 1 1 1 6 Power 2 | . . . 1 . 1 Propulsion 4 | . . 1 . . 3 Utility 2 | . 1 . . 1 . Weapon 2 | . . . . . 2 Tool/Special . | . . . . . . Average Slot Usage (%) 74 | . 99 74 78 76 69 Engine 11 | . 14 12 14 14 8 Wheel 13 | . 5 1 14 14 15 Hover 1 | . 22 7 . . . Flight 1 | . . 17 . . . Device 8 | . 14 14 8 . 9 Storage 11 | . 14 14 14 14 9 Processor 6 | . . . 5 14 6 Protection 1 | . . . . . 2 Energy Gun 8 | . 3 . 8 . 12 Energy Cannon 6 | . . . 13 19 2 Ballistic Gun 1 | . 23 7 . . . Peak Build Rating 37 | 9 9 8 31 30 37 Average Rating 23 | 5 8 5 15 26 31 On Entrance 11 | . 9 7 3 30 22 Avg Prop Armor Cover (%) 7 | . . . . . 7 Naked Turns 2 | . . . . . 2 Heaviest Build 34 | 12 12 11 32 32 34 Greatest Support 56 | 32 32 32 16 16 56 Greatest Overweight (x) 9 | . . 2 1 1 9 Average Overweight (x) . | . . . . . . Largest Inventory Capacity 8 | 8 8 8 8 8 8 Average Capacity 7 | 7 8 8 8 8 7 Most Carried 8 | 3 8 8 8 8 8 Average Carried 5 | 1 5 7 5 7 5 Final Capacity 8 | 8 8 8 8 8 5 Final Carried 8 | 2 7 6 8 6 5 Class Distribution -------------------- 68% | Mutant 31% | Skirmisher Dominant Class ---------------- Mutant | -10/Materials Mutant | -10/Mines Mutant | -10/Exiles Mutant | -9/Mines Skirmisher | -8/Materials Resources | -11 -10 -10 -10 -9 -8 ----------- Run | Yrd Mat Min Exi Min Mat Matter Collected 839 | 196 96 . . 23 524 Remotely . | . . . . . . Salvage Created 1081 | 93 28 44 . 101 815 Parts 57 | 10 3 5 . 7 32 Haulers Intercepted . | . . . . . . Recyclers Shooed . | . . . . . . Parts Field Recycled . | . . . . . . Retrieved Matter . | . . . . . . Parts Self-Destructed . | . . . . . . Prevented . | . . . . . . Parts Restored . | . . . . . . Kills | -11 -10 -10 -10 -9 -8 ------- Run | Yrd Mat Min Exi Min Mat Combat Hostiles Destroyed 25 | . . 3 . 5 17 Guns 10 | . . 3 . . 7 Cannons 1 | . . . . . 1 AOE 14 | . . . . 5 9 Classes Destroyed 11 | 2 1 1 . 1 6 Worker 1 | . . . . . 1 Builder 1 | . . . . . 1 Tunneler 3 | 2 . . . 1 . Recycler 2 | 1 . . . . 1 Operator 1 | . . . . . 1 Watcher 3 | . 1 . . . 2 Swarmer 9 | . . 3 . 3 3 Grunt 10 | . . . . . 10 Brawler 2 | . . . . . 2 Specialist 2 | . . . . . 2 Assembled 2 | . . . . 2 . Best Kill Streak 4 | 2 1 3 . 4 4 Combat Bots Only 3 | . . 3 . 3 3 Max Kills in Single Turn 3 | 1 1 1 . 3 3 Gunslinging . | . . . . . . Exploded 2 | . . . . 2 2 Melee . | . . . . . . Uniques/NPCs Destroyed . | . . . . . . Combat | -11 -10 -10 -10 -9 -8 -------- Run | Yrd Mat Min Exi Min Mat Hostile Shots Fired 163 | . 2 38 . 9 114 Missed 48 | . . 15 . 2 31 Hits 115 | . 2 23 . 7 83 Melee 2 | . . . . . 2 Projectile 113 | . 2 23 . 7 81 Critical Strikes 1 | . . . . . 1 Damage Taken 2254 | . 25 284 . 115 1830 Core 779 | . . 136 . 75 568 Absorbed by Shields . | . . . . . . Core Remaining (%) 57 | 100 . . . 15 . Volleys Fired 83 | 15 4 8 . 5 51 Largest 2 | 2 2 2 . 2 2 Hottest 250 | 70 40 40 . 250 138 Shots Fired 150 | 30 8 16 . 7 89 Gun 125 | 30 8 16 . . 71 Cannon 15 | . . . . 7 8 Launcher 10 | . . . . . 10 Special . | . . . . . . Kinetic 39 | 15 8 16 . . . Thermal 96 | 15 . . . 5 76 Explosive 10 | . . . . . 10 Electromagnetic 5 | . . . . 2 3 Robot Hit Streak 13 | 7 3 3 . 2 13 Robot Miss Streak 8 | 2 3 3 . 8 3 Penetration Max . | . . . . . . Secondary Targets 3 | . . 1 . . 2 Max Gunslinging Chain 1 | . . 1 . . 1 Shots Hit Robots 92 | 21 3 10 . 3 55 Core Hits 63 | 7 2 4 . 7 43 Critical Kills . | . . . . . . Critical Parts Destroyed . | . . . . . . Critical Strikes 3 | 1 . . . . 2 Burn 3 | 1 . . . . 2 Melee Attacks . | . . . . . . Impact . | . . . . . . Slashing . | . . . . . . Piercing . | . . . . . . Sneak Attacks . | . . . . . . Combat Hostiles . | . . . . . . Follow-up Attacks . | . . . . . . Damage Inflicted 3226 | 240 25 87 . 258 2616 Guns 1245 | 240 25 87 . . 893 Cannons 108 | . . . . 51 57 Explosions 1873 | . . . . 207 1666 Melee . | . . . . . . Ramming . | . . . . . . Kinetic 214 | 102 25 87 . . . Thermal 1403 | 138 . . . 138 1127 Explosive 877 | . . . . . 877 Electromagnetic 732 | . . . . 120 612 Impact . | . . . . . . Slashing . | . . . . . . Piercing . | . . . . . . Highest Corruption 14 | . . . . 5 14 Average Corruption 8 | . . . . 4 9 Corruption Purged . | . . . . . . Corruption Blocked . | . . . . . . Effects 81 | . . . . 5 76 Message Errors 19 | . . . . . 19 Matter Fused 18 | . . . . 3 15 Heat Flow Errors 11 | . . . . 2 9 Energy Discharges 11 | . . . . . 11 Parts Rejected 2 | . . . . . 2 Data Loss (minor) 9 | . . . . . 9 Data Loss (major) 3 | . . . . . 3 Misfires 4 | . . . . . 4 Alerts 4 | . . . . . 4 Overload Shots . | . . . . . . Overflow Damage 160 | . . . . . 160 Projectiles . | . . . . . . Explosions 160 | . . . . . 160 Melee . | . . . . . . Knockbacks . | . . . . . . Impact . | . . . . . . Kinetic . | . . . . . . Secondary . | . . . . . . Self-Inflicted Damage 441 | . . . . 46 395 Shots 12 | . . . . 2 10 Rammed . | . . . . . . Targets Rammed . | . . . . . . Kicked . | . . . . . . Crushed . | . . . . . . Highest Temperature 659 | 90 8 8 . 565 659 Average Temperature 153 | 33 4 4 . 196 172 Received Heat Transfer 597 | . 15 123 . . 459 Effects 21 | . . . . 4 17 Shutdowns 7 | . . . . 2 5 Energy Bleed 1 | . . . . . 1 Interference 2 | . . . . . 2 Matter Decay 2 | . . . . 1 1 Short Circuit 2 | . . . . 1 1 Damage (major) 6 | . . . . . 6 Damage (core) 1 | . . . . . 1 Siege Activations . | . . . . . . Martial Activations . | . . . . . . Shielding Activations . | . . . . . . Robots Disrupted . | . . . . . . Combat Hostiles . | . . . . . . Robots Corrupted . | . . . . . . Combat Hostiles . | . . . . . . Parts Fried 3 | . . . . . 3 Impact Corruptions . | . . . . . . Robots Melted . | . . . . . . Combat Hostiles . | . . . . . . Parts Melted 3 | . . . . . 3 Heat Transferred 3336 | 481 . . . 757 2098 Parts Sabotaged . | . . . . . . Parts Stolen . | . . . . . . Parts Stripped . | . . . . . . Power Chain Reactions . | . . . . . . Latent Energy Used 761 | . . . . 229 532 LE Corruption 14 | . . . . 5 9 Alert | -11 -10 -10 -10 -9 -8 ------- Run | Yrd Mat Min Exi Min Mat Maximum Alert Level 2 | . . . . . 2 Low Security (%) 80 | 100 100 100 . 100 72 Level 1 17 | . . . . . 25 Level 2 1 | . . . . . 2 Level 3 . | . . . . . . Level 4 . | . . . . . . Level 5 . | . . . . . . High Security . | . . . . . . Max Security . | . . . . . . Peak Influence 409 | 10 25 130 . 123 409 Initial . | . . . . . . Average 75 | 1 3 58 . 35 96 Influence Increases 1265 | 15 52 295 . 138 765 Destroy 0b10 Robot/C 460 | . . 60 . 60 340 Destroy 0b10 Robot/NC 55 | 15 5 . . 5 30 Destroy Leader 86 | . 2 10 . 10 64 Successful Hack 21 | . . . . . 21 Disable Machine 135 | . . . . 30 105 Destroy Structure 148 | . . . . 33 115 Partial Spotted 15 | . 15 . . . . Lose Combat Pursuer 345 | . 30 225 . . 90 Influence Decreases 870 | 15 52 150 145 138 370 Entered New Map 145 | . . . 145 . . Time Decay 595 | 15 52 120 . 138 270 Lost Part 130 | . . 30 . . 100 Squads Dispatched 5 | . . . . . 5 Investigation 1 | . . . . . 1 Extermination . | . . . . . . Reinforcement 4 | . . . . . 4 Assault . | . . . . . . Garrison . | . . . . . . Intercept . | . . . . . . Searches Triggered . | . . . . . . Construction Impeded 1 | . . . . . 1 Haulers Reinforced . | . . . . . . Active Scanning Responses . | . . . . . . Cargo Convoy Interrupts . | . . . . . . Stealth | -11 -10 -10 -10 -9 -8 --------- Run | Yrd Mat Min Exi Min Mat Distress Signals 7 | . . . . 1 6 Communications Jammed . | . . . . . . Distress Signals . | . . . . . . Times Spotted 63 | . 4 15 . 5 39 Peak Tracking Total 6 | . 2 6 . 3 6 Tactical Retreats 9 | . 1 4 . . 4 Traps | -11 -10 -10 -10 -9 -8 ------- Run | Yrd Mat Min Exi Min Mat Traps Triggered . | . . . . . . Indirectly . | . . . . . . Trap Hack Attempts . | . . . . . . Triggered . | . . . . . . Disarmed . | . . . . . . Reprogrammed . | . . . . . . Reused . | . . . . . . Traps Extracted . | . . . . . . Installed . | . . . . . . Triggered . | . . . . . . Objects Rigged 3 | . . . . . 3 Exploded 1 | . . . . . 1 Machines | -11 -10 -10 -10 -9 -8 ---------- Run | Yrd Mat Min Exi Min Mat Machines Disabled 9 | . . . . 2 7 Max in Single Turn 2 | . . . . 2 2 Machines Repaired . | . . . . . . Machines Dismantled . | . . . . . . Machines Sabotaged . | . . . . . . Overloaded Fab Kills . | . . . . . . Hacking | -11 -10 -10 -10 -9 -8 --------- Run | Yrd Mat Min Exi Min Mat Machines Accessed 12 | . 1 . 5 . 6 Terminals 5 | . . . . . 5 Fabricators . | . . . . . . Repair Stations 1 | . . . . . 1 Recycling Units 1 | . 1 . . . . Scanalyzers . | . . . . . . Garrison Access . | . . . . . . Total Hacks 66 | . 5 . 50 . 11 Successful 58 | . 3 . 50 . 5 Failed 8 | . 2 . . . 6 Catastrophic 1 | . . . . . 1 Database Lockouts . | . . . . . . Manual 17 | . . . 6 . 11 Terminals 10 | . . . . . 10 Fabricators . | . . . . . . Repair Stations 1 | . . . . . 1 Recycling Units 5 | . 5 . . . . Scanalyzers . | . . . . . . Garrison Access . | . . . . . . Terminal Hacks 50 | . . . 50 . . Record 49 | . . . 49 . . Proto ID Catalog 1 | . . . 1 . . Fabricator Hacks . | . . . . . . Repair Station Hacks . | . . . . . . Recycling Unit Hacks 3 | . 3 . . . . Retrieve Components 3 | . 3 . . . . Scanalyzer . | . . . . . . Garrison Access Hacks . | . . . . . . Unauthorized Hacks 5 | . . . . . 5 Terminals 5 | . . . . . 5 Botnet 2 | . . . . . 2 Detonate 3 | . . . . . 3 Fabricators . | . . . . . . Repair Stations . | . . . . . . Recycling Units . | . . . . . . Scanalyzers . | . . . . . . Garrison Access . | . . . . . . Data Cores Recovered . | . . . . . . Used . | . . . . . . Hacking Detections 4 | . . . . . 4 Full Trace Events 1 | . . . . . 1 Feedback Events . | . . . . . . Feedback Blocked . | . . . . . . Robot Schematics Acquired . | . . . . . . Robots Built . | . . . . . . Authchips . | . . . . . . Time . | . . . . . . Total Robot Build Rating . | . . . . . . Part Schematics Acquired . | . . . . . . Parts Built . | . . . . . . Authchips . | . . . . . . Time . | . . . . . . Total Part Build Rating . | . . . . . . Part Studies Acquired . | . . . . . . Parts Repaired . | . . . . . . Time . | . . . . . . Parts Recycled . | . . . . . . Recycled Matter . | . . . . . . Retrieved Matter . | . . . . . . Retrieved Components . | . . . . . . Parts Scanalyzed . | . . . . . . Part Schematics Acquired . | . . . . . . Parts Damaged . | . . . . . . Bothacking | -11 -10 -10 -10 -9 -8 ------------ Run | Yrd Mat Min Exi Min Mat Used RIF Installer . | . . . . . . Robots Hacked . | . . . . . . Non-combat . | . . . . . . Combat . | . . . . . . Robot Hacks Applied . | . . . . . . Relay Couplers Released . | . . . . . . Fabnet Peak Effective % . | . . . . . . Robots Rewired . | . . . . . . Allies Hacked . | . . . . . . Hacks Repelled . | . . . . . . Allies | -11 -10 -10 -10 -9 -8 -------- Run | Yrd Mat Min Exi Min Mat Total Allies . | . . . . . . Largest Group . | . . . . . . Highest-Rated Group . | . . . . . . Highest-Rated Ally . | . . . . . . Total Orders . | . . . . . . Ally Attacks . | . . . . . . Total Damage . | . . . . . . Kills . | . . . . . . Allies Corrupted . | . . . . . . Allies Melted . | . . . . . . Intel | -11 -10 -10 -10 -9 -8 ------- Run | Yrd Mat Min Exi Min Mat Active Infowar (turns) 4514 | 31 245 264 1056 460 2458 Terrain 367 | 31 158 . . . 178 Structural 3426 | . 87 264 617 . 2458 T.N.C. 2664 | . . . 439 460 1765 Robot Analysis Total . | . . . . . . Derelict Logs Recovered . | . . . . . . Drone Launches . | . . . . . . Drone Recoveries . | . . . . . . Exploration | -11 -10 -10 -10 -9 -8 ------------- Run | Yrd Mat Min Exi Min Mat Turns Passed 4744 | 166 280 264 1057 460 2517 Spaces Moved 2615 | 111 361 202 918 257 766 Core 20 | 4 . . . . 16 Treads . | . . . . . . Legs . | . . . . . . Wheels 2047 | 107 26 28 918 257 711 Hover 361 | . 335 26 . . . Flight 187 | . . 148 . . 39 Fastest Speed 50 | 50 56 56 100 100 50 Average Speed 104 | 98 59 107 105 114 120 Slowest Speed 500 | 100 100 200 115 115 500 Overloaded Moves . | . . . . . . Propulsion Burnouts . | . . . . . . Robots Hopped . | . . . . . . Potential Cave-ins 1 | . . . . 1 . Cave-ins Triggered . | . . . . . . Exploration Rate (%) 49 | 3 46 59 93 54 41 Regions Visited 5 Branch Regions 3 Pre-discovered Areas 1 | . . . 1 . . Known Exits Taken . | . . . . . . Unknown Exits Taken 5 | 1 1 1 1 1 . Scrap Searched . | . . . . . . Spaces Dug . | . . . . . . Terrain Destroyed 164 | . . . . 34 130 Melee . | . . . . . . Projectile . | . . . . . . AOE 164 | . . . . 34 130 Terrain Rammed . | . . . . . . Walls Destroyed . | . . . . . . Machines Disabled . | . . . . . . Actions | -11 -10 -10 -10 -9 -8 --------- Run | Yrd Mat Min Exi Min Mat Total 4503 | 141 426 239 1007 416 2274 Wait 1659 | . 33 6 54 148 1418 Move 2610 | 110 360 201 917 256 766 Hop . | . . . . . . Pick Up 44 | 9 8 2 7 2 16 Fast Attach . | . . . . . . Attach 45 | 7 9 4 9 2 14 Detach 21 | . 9 2 5 . 5 Swap . | . . . . . . Drop 18 | . 3 4 4 3 4 Fire 83 | 15 4 8 . 5 51 Melee . | . . . . . . Ram . | . . . . . . Kick . | . . . . . . Crush . | . . . . . . Escape Stasis . | . . . . . . Rewire 23 | . . 12 11 . . Trap . | . . . . . . Miscellaneous . | . . . . . . Route ------- -11/Scrapyard -10/Materials -10/Mines -10/Exiles -9/Mines -8/Materials (discovered 1 exit: [*Fac]) History --------- Turn | Location | Event 62 | -11/Scrapyard | Discovered new exit (range 15) 167 | -11/Scrapyard | Entered Materials 347 | -10/Materials | Build established: Mutant 444 | -10/Materials | Discovered new exit (range 7) 447 | -10/Materials | Entered Mines 688 | -10/Mines | Core integrity fell below 50% 706 | -10/Mines | Deemed a non-threat by the Exiles lab entrance 706 | -10/Mines | Discovered new exit (range 6) 711 | -10/Mines | Entered Exiles 717 | -10/Exiles | Lost 3 parts (1p2n) 747 | -10/Exiles | Met 8R-AWN 777 | -10/Exiles | Met EX-HEX 866 | -10/Exiles | Met EX-DEC 941 | -10/Exiles | Learned location of Zion (-7) 991 | -10/Exiles | Visited The Gauntlet 1159 | -10/Exiles | Discovered new exit (range 11) 1241 | -10/Exiles | Met EX-BIN 1259 | -10/Exiles | Aligned with FarCom system 1260 | -10/Exiles | Given EX-Vault access code 1323 | -10/Exiles | Opened EX-Vault 1327 | -10/Exiles | Found Prototype Processor 1329 | -10/Exiles | Identified Modified TNC 1335 | -10/Exiles | Found Prototype Energy Cannon 1340 | -10/Exiles | Identified Firepult 1350 | -10/Exiles | Found Prototype Energy Cannon 1353 | -10/Exiles | Identified Latent Energy Streamer 1398 | -10/Exiles | Warned to stay clear of 0b10 Research branches 1768 | -10/Exiles | Stole three prototypes: Firepult, Modified TNC, Latent Energy Streamer 1768 | -10/Exiles | Entered Mines 1818 | -9/Mines | Met a Derelict bent on vengeance 2002 | -9/Mines | Assembled infested the area 2063 | -9/Mines | Core integrity fell below 20% 2172 | -9/Mines | Discovered new exit (range 15) 2228 | -9/Mines | Entered Materials 2228 | -8/Materials | Evolved 4 slots: Propulsion x2, Utility x2 2526 | -8/Materials | Build established: Skirmisher 4006 | -8/Materials | Core integrity fell below 50% 4006 | -8/Materials | System corruption reached 10% 4256 | -8/Materials | Build established: Mutant 4687 | -8/Materials | Core integrity fell below 20% 4717 | -8/Materials | Lost 4 parts (2n1u1w) 4738 | -8/Materials | Discovered new exit (range 16) 4743 | -8/Materials | Released all parts (3) 4745 | -8/Materials | Destroyed by H-61 Shepherd with Heavy Assault Cannon Last Messages --------------- 04723_ U-05 Engineer builds a Wall. 04728_ ALERT: Suspicious intruders detected, dispatching Specialist reinforcements to area. 04728_ W-25 Informer sends out distress signal. 04731_ U-05 Engineer builds a Wall. 04734_ U-05 Engineer lays Concrete. 04735_ U-05 Engineer builds a Wall. 04736_ System corrupted: Energy discharge (-68). 04736_ U-05 Engineer lays Concrete. 04738_ EXIT=FOUND 04738_ U-05 Engineer lays Concrete. 04739_ K-01 Serf collects debris. 04740_ U-05 Engineer lays Concrete. 04741_ Hrd. Medium Armor Plating destroyed. 04742_ U-05 Engineer lays Concrete. 04743_ Released Rnf. Ion Engine. 04743_ Released Sml. Storage Unit. 04743_ Released Missile Launcher. 04743_ U-05 Engineer lays Concrete. 04745_ Penetrated by Slug. Map ----- +----------------------------------------------------+ | ????????????????????????????????????? | | ????????????????????????????????????? | | ????????????????????????????????????? | | ????????????????????????????????????? | | ????????????????????????????????????? | | ????????????????????????????????????? | | ????????????????????????????????????? | | ????????????????????????????????????? | | ????????????????????????????????????? | | ????????????????????????????????????? | | ????????????????????????????????????? | | ????????????????????????????????????? | | ????????????#+##????????????????????? | | ???????????# #????????????????????? | | ?????????? + ???????????????????? | | ?????????? # r# ???????????????????? | | ?????????? + # ?Y?????????????????? | | ?????????? # # ???????????????????? | | ?????????? # # ??????????????????? | | ?????????? # ##??????????????????? | | ?????????? # ##?????????????????? | | ??????????## # ??????????????????/# | | ??????????## # ???????????????### | | ??????????## + ???????????####### | | ############% # ??? ######## # | | ############@ ############### ## | | ## # ####### ### | | ## ] # | | ## """ /#% T | | # # ! | | += %####### #### ### | | [k] #########+###### ### | | # !] ##???# # ### | | # x# ##??????"" ??? # ##? | | ######### ##?????"R ?? # ### | | !! !#x a##?????""" ?? # ### | | !! # ##???? ""? # | | ##### !! + ##???? ""? # | | ??### # ##???? """ # | | ????# # ##????? ? # "" | | ????# # H ##?????######?## "" | | ????######## ##?????######?## "" | | ????????#### ##????########## | | ??????????## ##????########## | | ??????????## ##????## | | ???????????? ##????## | | ???????????? < ??????## | | ?????????????????????## ""T | | ?????????????????????## """ | | ?????????????????????## ########### | +----------------------------------------------------+ Best States ------------- Heat Dissipation 31 Energy Generation 12 Energy Capacity 265 Matter Stores 300 Matter Capacity 300 Sight Range 16 Terrain Scan Range 16 Terrain Scan Density 10 Armor Coverage 225 Evasion (%) 53 Item Schematics ----------------- None Robot Schematics ------------------ None Fabricated ------------ Nothing Repaired ---------- Nothing Studied --------- None Alien Tech Used ----------------- None Achievements -------------- Heavy Suspicion Librarian Overwhelming Sixth Sense Well Done Challenges ------------ None Game ------ Seed ScatterActuatorTearclaws Manual? 0 Play Time 00:37:07 Cumulative 11.9 hours Start 2026.06.26 @ 17:36:52 End 2026.06.27 @ 19:31:44 Sessions 3 Manual Loads 0 Difficulty Rogue Special Mode None Game No. 23 Rogue 23 Adventurer 0 Explorer 0 Win Type - Total 0 Types 0/0/0/0/0/0/0/0/0/0 Lore% 6 Gallery% 14 Achievement% 13 Wizard Run 0 Options --------- Layout 1 ASCII 0 Keyboard 1 Movement Numpad Keybinds 0 Fullscreen 1 Font 24/Smallcaps Map View 50x35 Zoom Use 0% Tactical HUD 1 Map Filters NONE Filters NONE Steam 1 RUN: 5c82c9e6-b399-4809-973c-556213d7ed51